[Event "Live Chess"]
[Site "Chess.com"]
[Date "2023.05.20"]
[Round "-"]
[White "Daniel_Gliddon_FA"]
[Black "Inglaterra"]
[Result "0-1"]
[WhiteElo "1280"]
[BlackElo "2076"]
[TimeControl "300"]
[EndTime "10:57:15 PDT"]
[Termination "Inglaterra won by resignation"]

1. e4 {[%clk 0:04:56.4]} 1... Nf6 {[%clk 0:04:59.2]} 2. e5 {[%clk 0:04:53.8]}
2... Nd5 {[%clk 0:04:58.5]} 3. c4 {[%clk 0:04:48.7]} 3... Nb6 {[%clk 0:04:57.2]}
4. d4 {[%clk 0:04:46.1]} 4... d6 {[%clk 0:04:55.5]} 5. Nf3 {[%clk 0:04:42.1]}
5... Bg4 {[%clk 0:04:49.1]} 6. exd6 {[%clk 0:04:38.6]} 6... exd6 {[%clk
0:04:46.4]} 7. Be2 {[%clk 0:04:31.9]} 7... Be7 {[%clk 0:04:45.3]} 8. h3 {[%clk
0:04:27.9]} 8... Bh5 {[%clk 0:04:42.9]} 9. O-O {[%clk 0:04:24.7]} 9... O-O
{[%clk 0:04:40.4]} 10. b3 {[%clk 0:04:14.9]} 10... Bf6 {[%clk 0:04:32.2]} 11.
Bb2 {[%clk 0:04:13]} 11... Nc6 {[%clk 0:04:27.8]} 12. Nbd2 {[%clk 0:03:52.9]}
12... Re8 {[%clk 0:04:02.2]} 13. Qc2 {[%clk 0:03:42.8]} 13... Rxe2 {[%clk
0:03:57.8]} 14. g4 {[%clk 0:03:30.8]} 14... Bg6 {[%clk 0:03:54.5]} 15. Qd1
{[%clk 0:03:28]} 15... Qe7 {[%clk 0:03:49]} 16. c5 {[%clk 0:03:15.1]} 16... dxc5
{[%clk 0:03:44.9]} 17. dxc5 {[%clk 0:03:13.5]} 17... Bxb2 {[%clk 0:03:44.2]} 18.
Rb1 {[%clk 0:03:10.4]} 18... Bxb1 {[%clk 0:03:39.1]} 0-1

[Event "Live Chess"]
[Site "Chess.com"]
[Date "2023.05.20"]
[Round "-"]
[White "LiamBellwood"]
[Black "Chesscoach_Golichenko"]
[Result "0-1"]
[WhiteElo "2079"]
[BlackElo "2653"]
[TimeControl "300"]
[EndTime "10:57:25 PDT"]
[Termination "Chesscoach_Golichenko won on time"]

1. d4 {[%clk 0:04:59.2]} 1... Nf6 {[%clk 0:04:58.5]} 2. Bf4 {[%clk 0:04:57.5]}
2... e6 {[%clk 0:04:56.5]} 3. Nc3 {[%clk 0:04:54.9]} 3... Bb4 {[%clk 0:04:54]}
4. Qd3 {[%clk 0:04:54.5]} 4... d5 {[%clk 0:04:51.6]} 5. a3 {[%clk 0:04:51.9]}
5... Bd6 {[%clk 0:04:49.4]} 6. e3 {[%clk 0:04:45.7]} 6... O-O {[%clk 0:04:47.3]}
7. Nf3 {[%clk 0:04:39.8]} 7... c5 {[%clk 0:04:45]} 8. dxc5 {[%clk 0:04:34]} 8...
Bxc5 {[%clk 0:04:33.4]} 9. O-O-O {[%clk 0:04:32.7]} 9... Nc6 {[%clk 0:04:28.8]}
10. Ne5 {[%clk 0:04:13.5]} 10... Nxe5 {[%clk 0:04:06.1]} 11. Bxe5 {[%clk
0:04:13.4]} 11... Nd7 {[%clk 0:04:05.2]} 12. Bg3 {[%clk 0:04:11.5]} 12... b6
{[%clk 0:04:03.5]} 13. e4 {[%clk 0:03:56.1]} 13... d4 {[%clk 0:03:59.7]} 14. Nb5
{[%clk 0:03:53.6]} 14... e5 {[%clk 0:03:58.2]} 15. a4 {[%clk 0:03:37.2]} 15...
a6 {[%clk 0:03:47.7]} 16. Na3 {[%clk 0:03:36.4]} 16... Qe7 {[%clk 0:03:47.3]}
17. Nc4 {[%clk 0:03:15.4]} 17... b5 {[%clk 0:03:41.3]} 18. Na5 {[%clk
0:03:11.4]} 18... bxa4 {[%clk 0:03:36.5]} 19. f4 {[%clk 0:03:01.5]} 19... a3
{[%clk 0:03:29.5]} 20. b3 {[%clk 0:02:49.9]} 20... Bb4 {[%clk 0:03:13.5]} 21.
Nc6 {[%clk 0:02:49.1]} 21... Qc5 {[%clk 0:03:05.9]} 22. Nxb4 {[%clk 0:02:44.4]}
22... Qxb4 {[%clk 0:03:05.8]} 23. Kb1 {[%clk 0:02:37.2]} 23... a5 {[%clk
0:03:00.6]} 24. fxe5 {[%clk 0:02:26.4]} 24... a2+ {[%clk 0:02:44.6]} 25. Kb2
{[%clk 0:02:05.3]} 25... Nc5 {[%clk 0:02:30.6]} 26. Qxd4 {[%clk 0:01:48]} 26...
Na4+ {[%clk 0:02:27.4]} 27. Ka1 {[%clk 0:01:43.1]} 27... Nc3 {[%clk 0:02:19.5]}
28. Qxb4 {[%clk 0:01:30.2]} 28... axb4 {[%clk 0:02:19.4]} 29. Rd3 {[%clk
0:01:28.7]} 29... Nxe4 {[%clk 0:02:02.7]} 30. Be1 {[%clk 0:01:22.1]} 30... Ba6
{[%clk 0:01:48.6]} 31. Rd4 {[%clk 0:01:16.5]} 31... Bb7 {[%clk 0:01:16]} 32.
Bxb4 {[%clk 0:01:11.8]} 32... Rfd8 {[%clk 0:01:09.8]} 33. Rxd8+ {[%clk
0:01:06.1]} 33... Rxd8 {[%clk 0:01:09.7]} 34. Bd3 {[%clk 0:00:59.6]} 34... Nf2
{[%clk 0:01:07.4]} 35. Rc1 {[%clk 0:00:48.7]} 35... Bxg2 {[%clk 0:01:01.3]} 36.
Kxa2 {[%clk 0:00:45.6]} 36... h5 {[%clk 0:00:57.4]} 37. Bc4 {[%clk 0:00:34.4]}
37... Bd5 {[%clk 0:00:50.1]} 38. Bxd5 {[%clk 0:00:24.4]} 38... Rxd5 {[%clk
0:00:50]} 39. Rf1 {[%clk 0:00:19.4]} 39... Ng4 {[%clk 0:00:46.4]} 40. c4 {[%clk
0:00:17]} 40... Rxe5 {[%clk 0:00:43]} 41. c5 {[%clk 0:00:14.5]} 41... Nxh2
{[%clk 0:00:36]} 42. Rd1 {[%clk 0:00:11.6]} 42... Re6 {[%clk 0:00:32.4]} 43. Ba3
{[%clk 0:00:08.3]} 43... Ng4 {[%clk 0:00:29.5]} 44. b4 {[%clk 0:00:06.3]} 44...
Ne3 {[%clk 0:00:28.4]} 45. Re1 {[%clk 0:00:05.3]} 45... f5 {[%clk 0:00:24.2]}
46. Bc1 {[%clk 0:00:03.7]} 46... f4 {[%clk 0:00:23.1]} 47. Bxe3 {[%clk
0:00:01.9]} 47... fxe3 {[%clk 0:00:23]} 48. c6 {[%clk 0:00:01.3]} 48... Rxc6
{[%clk 0:00:21.8]} 49. Rxe3 {[%clk 0:00:01.2]} 49... g5 {[%clk 0:00:20.6]} 50.
Rh3 {[%clk 0:00:01.1]} 50... h4 {[%clk 0:00:19.7]} 51. Re3 {[%clk 0:00:00.7]}
51... Rh6 {[%clk 0:00:16.6]} 52. Re5 {[%clk 0:00:00.6]} 52... Rg6 {[%clk
0:00:14.5]} 53. Re8+ {[%clk 0:00:00.5]} 53... Kf7 {[%clk 0:00:13.3]} 54. Re2
{[%clk 0:00:00.4]} 54... h3 {[%clk 0:00:12.3]} 55. Rg2 {[%clk 0:00:00.3]} 55...
g4 {[%clk 0:00:12.1]} 0-1

[Event "Live Chess"]
[Site "Chess.com"]
[Date "2023.05.20"]
[Round "-"]
[White "worldchessleaguelive"]
[Black "lightningorderyt"]
[Result "1-0"]
[WhiteElo "1389"]
[BlackElo "549"]
[TimeControl "300"]
[EndTime "10:57:27 PDT"]
[Termination "worldchessleaguelive won by resignation"]

1. d4 {[%clk 0:04:57.6]} 1... d5 {[%clk 0:04:57.8]} 2. Bf4 {[%clk 0:04:55.8]}
2... Nf6 {[%clk 0:04:45.5]} 3. Nf3 {[%clk 0:04:54.1]} 3... Bf5 {[%clk
0:04:33.9]} 4. Nbd2 {[%clk 0:04:45]} 4... Nbd7 {[%clk 0:04:27]} 5. e3 {[%clk
0:04:42.4]} 5... e6 {[%clk 0:04:20.5]} 6. c4 {[%clk 0:04:39.8]} 6... c6 {[%clk
0:04:14.6]} 7. c5 {[%clk 0:04:37.9]} 7... Be7 {[%clk 0:04:11.4]} 8. h3 {[%clk
0:04:35.3]} 8... O-O {[%clk 0:04:10.3]} 9. Be2 {[%clk 0:04:33.5]} 9... b6 {[%clk
0:03:59.2]} 10. g4 {[%clk 0:04:30.6]} 10... Bg6 {[%clk 0:03:51.9]} 11. g5 {[%clk
0:04:29.3]} 11... Nh5 {[%clk 0:03:47.4]} 12. cxb6 {[%clk 0:04:23.7]} 12... Nxb6
{[%clk 0:03:45.3]} 13. Ne5 {[%clk 0:04:15.5]} 13... Bf5 {[%clk 0:03:09.9]} 14.
Nxc6 {[%clk 0:04:07.1]} 14... Qd7 {[%clk 0:02:49.9]} 15. Nxe7+ {[%clk
0:04:05.2]} 15... Qxe7 {[%clk 0:02:48.7]} 16. Bxh5 {[%clk 0:04:02.4]} 16... g6
{[%clk 0:02:38.5]} 17. Bg4 {[%clk 0:04:00.8]} 17... Qb4 {[%clk 0:02:29.4]} 18.
Bxf5 {[%clk 0:03:55.8]} 18... exf5 {[%clk 0:02:27.4]} 19. a3 {[%clk 0:03:44.1]}
19... Qxb2 {[%clk 0:02:21.7]} 20. O-O {[%clk 0:03:26.3]} 20... Qc3 {[%clk
0:01:48.4]} 21. Bd6 {[%clk 0:03:13.9]} 21... Rfd8 {[%clk 0:01:35.2]} 22. Rc1
{[%clk 0:03:08.8]} 22... Qxa3 {[%clk 0:01:28.9]} 23. Bxa3 {[%clk 0:03:06.9]} 1-0

[Event "Live Chess"]
[Site "Chess.com"]
[Date "2023.05.20"]
[Round "-"]
[White "jagbama"]
[Black "jennybobby44"]
[Result "0-1"]
[WhiteElo "1138"]
[BlackElo "1851"]
[TimeControl "300"]
[EndTime "10:57:35 PDT"]
[Termination "jennybobby44 won by resignation"]

1. e4 {[%clk 0:04:55.6]} 1... c5 {[%clk 0:04:57.5]} 2. Nc3 {[%clk 0:04:54.9]}
2... Nc6 {[%clk 0:04:56.6]} 3. Bc4 {[%clk 0:04:54]} 3... e6 {[%clk 0:04:55.8]}
4. d3 {[%clk 0:04:52.3]} 4... a6 {[%clk 0:04:55.3]} 5. a4 {[%clk 0:04:49.8]}
5... Nf6 {[%clk 0:04:54.6]} 6. Bg5 {[%clk 0:04:46.3]} 6... Be7 {[%clk
0:04:53.4]} 7. Nf3 {[%clk 0:04:44.2]} 7... h6 {[%clk 0:04:52.8]} 8. Bh4 {[%clk
0:04:38.3]} 8... O-O {[%clk 0:04:51.9]} 9. d4 {[%clk 0:04:26.1]} 9... cxd4
{[%clk 0:04:50.1]} 10. Nxd4 {[%clk 0:04:25.2]} 10... Ne5 {[%clk 0:04:38.3]} 11.
Bd3 {[%clk 0:04:11.9]} 11... Nxd3+ {[%clk 0:04:23.6]} 12. cxd3 {[%clk
0:04:08.7]} 12... Qb6 {[%clk 0:04:18.1]} 13. Nb3 {[%clk 0:03:55.1]} 13... d6
{[%clk 0:03:59.4]} 14. a5 {[%clk 0:03:35.4]} 14... Qb4 {[%clk 0:03:53.2]} 15.
Nd2 {[%clk 0:03:19]} 15... Qxb2 {[%clk 0:03:46.5]} 16. Ne2 {[%clk 0:03:18]}
16... d5 {[%clk 0:03:33.8]} 17. e5 {[%clk 0:03:16.5]} 17... Qxe5 {[%clk
0:03:31.4]} 18. Nf3 {[%clk 0:03:15.5]} 18... Qc7 {[%clk 0:03:14.5]} 19. Rc1
{[%clk 0:03:14.3]} 19... Qd8 {[%clk 0:03:13]} 20. Ne5 {[%clk 0:02:59.4]} 20...
Qxa5+ {[%clk 0:03:11.4]} 21. Nc3 {[%clk 0:02:47.9]} 21... g5 {[%clk 0:02:45.2]}
22. Bg3 {[%clk 0:02:21.5]} 22... d4 {[%clk 0:02:40.6]} 23. O-O {[%clk
0:02:14.4]} 23... dxc3 {[%clk 0:02:36.9]} 24. Nc4 {[%clk 0:02:03]} 24... Qd5
{[%clk 0:02:25.6]} 25. Rxc3 {[%clk 0:01:53.4]} 25... Nd7 {[%clk 0:02:17.1]} 26.
Qh5 {[%clk 0:01:42]} 26... Kg7 {[%clk 0:02:08.9]} 27. Be5+ {[%clk 0:01:40.8]}
27... Nxe5 {[%clk 0:02:07.8]} 28. Nb6 {[%clk 0:01:34.7]} 28... Qd4 {[%clk
0:01:57.7]} 29. Nxc8 {[%clk 0:00:37.9]} 29... Raxc8 {[%clk 0:01:52.4]} 30. Rb3
{[%clk 0:00:28.6]} 30... b5 {[%clk 0:01:47.2]} 31. g3 {[%clk 0:00:19.6]} 31...
Qd5 {[%clk 0:01:42]} 32. Rbb1 {[%clk 0:00:12.3]} 32... Nf3+ {[%clk 0:01:40.9]}
0-1

[Event "Live Chess"]
[Site "Chess.com"]
[Date "2023.05.20"]
[Round "-"]
[White "raminguy"]
[Black "Reggie016"]
[Result "1-0"]
[WhiteElo "1985"]
[BlackElo "1073"]
[TimeControl "300"]
[EndTime "10:57:42 PDT"]
[Termination "raminguy won by resignation"]

1. d4 {[%clk 0:04:59.5]} 1... e6 {[%clk 0:04:59.1]} 2. Nc3 {[%clk 0:04:59]} 2...
f5 {[%clk 0:04:58]} 3. Bf4 {[%clk 0:04:58.1]} 3... Nf6 {[%clk 0:04:57.4]} 4. Nb5
{[%clk 0:04:56.8]} 4... d6 {[%clk 0:04:53.5]} 5. e3 {[%clk 0:04:55.8]} 5... a6
{[%clk 0:04:52.7]} 6. Nc3 {[%clk 0:04:54.5]} 6... Be7 {[%clk 0:04:50.7]} 7. Nf3
{[%clk 0:04:53.4]} 7... O-O {[%clk 0:04:50.4]} 8. Bd3 {[%clk 0:04:51.6]} 8... b6
{[%clk 0:04:48.9]} 9. O-O {[%clk 0:04:50.3]} 9... Bb7 {[%clk 0:04:48.7]} 10. Re1
{[%clk 0:04:49.2]} 10... Nbd7 {[%clk 0:04:48.4]} 11. Ng5 {[%clk 0:04:43.4]}
11... Qe8 {[%clk 0:04:41.6]} 12. Nxe6 {[%clk 0:04:41.8]} 12... Qg6 {[%clk
0:04:41.2]} 13. Bf1 {[%clk 0:04:36.1]} 13... Rfc8 {[%clk 0:04:34.7]} 14. Bg3
{[%clk 0:04:26.9]} 14... Ne4 {[%clk 0:04:28.1]} 15. Nf4 {[%clk 0:04:24.3]} 15...
Qh6 {[%clk 0:04:16.7]} 16. Nxe4 {[%clk 0:04:18.3]} 16... Bxe4 {[%clk 0:04:15.5]}
17. d5 {[%clk 0:04:09.5]} 17... Nc5 {[%clk 0:04:05.6]} 18. f3 {[%clk 0:04:08]}
18... Bxc2 {[%clk 0:03:53.6]} 19. Qxc2 {[%clk 0:04:05.7]} 19... Bg5 {[%clk
0:03:53]} 20. Qxf5 {[%clk 0:04:02.8]} 20... Bxf4 {[%clk 0:03:51.7]} 21. Bxf4
{[%clk 0:04:01.4]} 1-0

[Event "Live Chess"]
[Site "Chess.com"]
[Date "2023.05.20"]
[Round "-"]
[White "CheckString"]
[Black "TDCMF"]
[Result "0-1"]
[WhiteElo "1176"]
[BlackElo "366"]
[TimeControl "300"]
[EndTime "10:57:43 PDT"]
[Termination "TDCMF won by resignation"]

1. e4 {[%clk 0:04:58.5]} 1... e5 {[%clk 0:04:58.7]} 2. Nc3 {[%clk 0:04:57.7]}
2... Nc6 {[%clk 0:04:52]} 3. Bc4 {[%clk 0:04:56.3]} 3... Bc5 {[%clk 0:04:50]} 4.
Qg4 {[%clk 0:04:55]} 4... h5 {[%clk 0:04:29.7]} 5. Qxg7 {[%clk 0:04:46.2]} 5...
Qh4 {[%clk 0:04:12.9]} 6. Qxh8 {[%clk 0:04:33.4]} 6... Kf8 {[%clk 0:04:09.9]} 7.
Qh6+ {[%clk 0:04:27.1]} 7... Nxh6 {[%clk 0:04:07.7]} 8. Bxf7 {[%clk 0:04:17.4]}
8... Nxf7 {[%clk 0:04:05.4]} 9. Nd5 {[%clk 0:04:16.7]} 9... Qxe4+ {[%clk
0:03:59.1]} 10. Ne3 {[%clk 0:04:15.7]} 10... Nd4 {[%clk 0:03:50.3]} 11. f3
{[%clk 0:04:11.5]} 0-1

[Event "Live Chess"]
[Site "Chess.com"]
[Date "2023.05.20"]
[Round "-"]
[White "luckywookie"]
[Black "MMmaaxxxx"]
[Result "0-1"]
[WhiteElo "729"]
[BlackElo "2032"]
[TimeControl "300"]
[EndTime "10:57:44 PDT"]
[Termination "MMmaaxxxx won by checkmate"]

1. e4 {[%clk 0:04:56.7]} 1... c6 {[%clk 0:04:58.7]} 2. Nf3 {[%clk 0:04:53.8]}
2... d5 {[%clk 0:04:57.1]} 3. e5 {[%clk 0:04:51.5]} 3... c5 {[%clk 0:04:56.4]}
4. c3 {[%clk 0:04:49.1]} 4... Nc6 {[%clk 0:04:55.6]} 5. d4 {[%clk 0:04:47.8]}
5... cxd4 {[%clk 0:04:55.5]} 6. cxd4 {[%clk 0:04:46.4]} 6... Bg4 {[%clk
0:04:54.8]} 7. Nc3 {[%clk 0:04:39.1]} 7... e6 {[%clk 0:04:53.6]} 8. Bb5 {[%clk
0:04:34.6]} 8... Ne7 {[%clk 0:04:51.8]} 9. O-O {[%clk 0:04:26]} 9... a6 {[%clk
0:04:49.2]} 10. Bxc6+ {[%clk 0:04:23.3]} 10... Nxc6 {[%clk 0:04:49.1]} 11. Be3
{[%clk 0:04:20.2]} 11... Be7 {[%clk 0:04:44.7]} 12. a3 {[%clk 0:04:19.1]} 12...
b5 {[%clk 0:04:41.5]} 13. b4 {[%clk 0:04:16.6]} 13... Qb6 {[%clk 0:04:37]} 14.
h3 {[%clk 0:04:02]} 14... Bh5 {[%clk 0:04:27.3]} 15. Qd2 {[%clk 0:03:49]} 15...
O-O {[%clk 0:04:25.1]} 16. Rac1 {[%clk 0:03:43.9]} 16... Bxf3 {[%clk 0:04:24.3]}
17. gxf3 {[%clk 0:03:41.8]} 17... Rac8 {[%clk 0:04:23.6]} 18. Kh1 {[%clk
0:03:35.9]} 18... Kh8 {[%clk 0:04:16.7]} 19. Rg1 {[%clk 0:03:34.2]} 19... Rc7
{[%clk 0:04:12.2]} 20. Rg3 {[%clk 0:03:23.1]} 20... Rb8 {[%clk 0:04:09.1]} 21.
Rcg1 {[%clk 0:03:21.4]} 21... Bf8 {[%clk 0:04:08.4]} 22. Bh6 {[%clk 0:03:15.4]}
22... g6 {[%clk 0:04:07.6]} 23. h4 {[%clk 0:03:10.6]} 23... Qxd4 {[%clk
0:04:02.8]} 24. Rxg6 {[%clk 0:02:40.6]} 24... fxg6 {[%clk 0:03:52.3]} 25. Qg5
{[%clk 0:02:34.7]} 25... Qxe5 {[%clk 0:03:48.9]} 26. Qxe5+ {[%clk 0:02:24.1]}
26... Nxe5 {[%clk 0:03:47.2]} 27. Bf4 {[%clk 0:02:21.7]} 27... Bd6 {[%clk
0:03:42]} 28. h5 {[%clk 0:02:14.7]} 28... Rg8 {[%clk 0:03:34.8]} 29. h6 {[%clk
0:02:05.8]} 29... Rf8 {[%clk 0:03:28.8]} 30. Be3 {[%clk 0:01:57.4]} 30... Rxc3
{[%clk 0:03:25.7]} 31. Bd4 {[%clk 0:01:54.2]} 31... Rcxf3 {[%clk 0:03:24.3]} 32.
Rg2 {[%clk 0:01:43.1]} 32... Rh3+ {[%clk 0:03:20]} 33. Kg1 {[%clk 0:01:41.3]}
33... Rxh6 {[%clk 0:03:19]} 34. Bxe5+ {[%clk 0:01:34.3]} 34... Bxe5 {[%clk
0:03:17.4]} 35. f3 {[%clk 0:01:31.1]} 35... Rxf3 {[%clk 0:03:15]} 36. Rh2 {[%clk
0:01:30.5]} 36... Bd4+ {[%clk 0:03:10.2]} 37. Kg2 {[%clk 0:01:28.3]} 37... Rf2+
{[%clk 0:03:10.1]} 38. Kg3 {[%clk 0:01:26.1]} 38... Rhxh2 {[%clk 0:03:08.9]} 39.
Kg4 {[%clk 0:01:24.7]} 39... Kg7 {[%clk 0:03:04.9]} 40. Kg5 {[%clk 0:01:23.7]}
40... Be5 {[%clk 0:02:58.6]} 41. a4 {[%clk 0:01:23.6]} 41... Rf4 {[%clk
0:02:57.2]} 42. axb5 {[%clk 0:01:13.6]} 42... h6# {[%clk 0:02:57.1]} 0-1

[Event "Live Chess"]
[Site "Chess.com"]
[Date "2023.05.20"]
[Round "-"]
[White "lamteama1"]
[Black "viktorskliarov"]
[Result "0-1"]
[WhiteElo "1160"]
[BlackElo "2649"]
[TimeControl "300"]
[EndTime "10:57:53 PDT"]
[Termination "viktorskliarov won on time"]

1. e4 {[%clk 0:04:37.5]} 1... c5 {[%clk 0:04:58.6]} 2. d3 {[%clk 0:04:03.3]}
2... Nc6 {[%clk 0:04:55.2]} 3. Nf3 {[%clk 0:03:36]} 3... g6 {[%clk 0:04:52.8]}
4. g3 {[%clk 0:03:31]} 4... Bg7 {[%clk 0:04:49.7]} 5. Bg2 {[%clk 0:03:26.6]}
5... Nf6 {[%clk 0:04:48.2]} 6. O-O {[%clk 0:03:20.1]} 6... O-O {[%clk
0:04:46.9]} 7. c3 {[%clk 0:03:13]} 7... d6 {[%clk 0:04:45.2]} 8. Nbd2 {[%clk
0:03:07.9]} 8... Rb8 {[%clk 0:04:43.4]} 9. Nc4 {[%clk 0:03:02.8]} 9... b5 {[%clk
0:04:40.7]} 10. Ne3 {[%clk 0:02:58.3]} 10... b4 {[%clk 0:04:35.2]} 11. Qc2
{[%clk 0:02:53.9]} 11... Ba6 {[%clk 0:04:28.3]} 12. Bd2 {[%clk 0:02:48.9]} 12...
bxc3 {[%clk 0:04:21.6]} 13. bxc3 {[%clk 0:02:42.4]} 13... Qa5 {[%clk 0:04:17.2]}
14. Rfb1 {[%clk 0:02:35.7]} 14... h6 {[%clk 0:04:03.2]} 15. d4 {[%clk
0:02:30.1]} 15... Rfc8 {[%clk 0:03:15.1]} 16. e5 {[%clk 0:02:20.4]} 16... Nh7
{[%clk 0:02:34.3]} 17. e6 {[%clk 0:02:11.1]} 17... cxd4 {[%clk 0:02:28.4]} 18.
Rxb8 {[%clk 0:02:03.8]} 18... Nxb8 {[%clk 0:02:24.1]} 19. exf7+ {[%clk
0:01:47.6]} 19... Kxf7 {[%clk 0:02:16.4]} 20. Nxd4 {[%clk 0:01:42.1]} 20... Bxd4
{[%clk 0:02:10.7]} 21. cxd4 {[%clk 0:01:14]} 21... Rxc2 {[%clk 0:02:07.5]} 22.
Nxc2 {[%clk 0:01:05.1]} 22... Qxd2 {[%clk 0:02:05.1]} 23. Bd5+ {[%clk 0:00:50]}
23... e6 {[%clk 0:02:00]} 24. Rc1 {[%clk 0:00:36.7]} 24... Qxc1+ {[%clk
0:01:58.3]} 25. Kg2 {[%clk 0:00:26.4]} 25... exd5 {[%clk 0:01:58.2]} 26. h4
{[%clk 0:00:18.4]} 26... Qxc2 {[%clk 0:01:54.7]} 0-1

[Event "Live Chess"]
[Site "Chess.com"]
[Date "2023.05.20"]
[Round "-"]
[White "PiotrD11"]
[Black "xx_blindpuffin_xx"]
[Result "0-1"]
[WhiteElo "1329"]
[BlackElo "2191"]
[TimeControl "300"]
[EndTime "10:58:06 PDT"]
[Termination "xx_blindpuffin_xx won by resignation"]

1. e4 {[%clk 0:04:59.2]} 1... e6 {[%clk 0:04:58.3]} 2. d4 {[%clk 0:04:57.9]}
2... d5 {[%clk 0:04:57.7]} 3. e5 {[%clk 0:04:56.1]} 3... c5 {[%clk 0:04:51.6]}
4. Nf3 {[%clk 0:04:54.7]} 4... Nc6 {[%clk 0:04:50.7]} 5. c3 {[%clk 0:04:54.2]}
5... Bd7 {[%clk 0:04:49.1]} 6. Be2 {[%clk 0:04:53]} 6... f6 {[%clk 0:04:44.3]}
7. O-O {[%clk 0:04:52.5]} 7... fxe5 {[%clk 0:04:41.9]} 8. Nxe5 {[%clk
0:04:50.5]} 8... Nxe5 {[%clk 0:04:41.1]} 9. dxe5 {[%clk 0:04:47.6]} 9... Ne7
{[%clk 0:04:39.7]} 10. Na3 {[%clk 0:04:34.3]} 10... g6 {[%clk 0:04:35.3]} 11.
Be3 {[%clk 0:04:26.9]} 11... Nf5 {[%clk 0:04:33.1]} 12. Bd2 {[%clk 0:04:18.1]}
12... Bg7 {[%clk 0:04:28.1]} 13. f4 {[%clk 0:04:15.2]} 13... O-O {[%clk
0:04:18.3]} 14. Nc2 {[%clk 0:04:03.7]} 14... Qb6 {[%clk 0:04:14.2]} 15. Rb1
{[%clk 0:04:02.3]} 15... h5 {[%clk 0:04:07.4]} 16. Ne3 {[%clk 0:04:01.4]} 16...
c4 {[%clk 0:04:04.4]} 17. Rf3 {[%clk 0:03:55.2]} 17... Bc6 {[%clk 0:03:55]} 18.
Kh1 {[%clk 0:03:52.7]} 18... Rad8 {[%clk 0:03:24.2]} 19. Nxf5 {[%clk 0:03:49.5]}
19... exf5 {[%clk 0:03:24.1]} 20. Rf1 {[%clk 0:03:46.9]} 20... Qc5 {[%clk
0:03:05]} 21. Be3 {[%clk 0:03:38.4]} 21... Qxe3 {[%clk 0:03:02.5]} 22. Qc2
{[%clk 0:03:31.7]} 22... b5 {[%clk 0:02:46.2]} 23. Rbe1 {[%clk 0:03:28]} 23...
Qc5 {[%clk 0:02:44]} 24. b4 {[%clk 0:03:24.1]} 24... cxb3 {[%clk 0:02:42.5]} 25.
axb3 {[%clk 0:03:21.6]} 25... d4 {[%clk 0:02:40.1]} 26. b4 {[%clk 0:03:16.5]}
26... Qxc3 {[%clk 0:02:38.3]} 27. Qxc3 {[%clk 0:03:13.1]} 27... dxc3 {[%clk
0:02:38.2]} 28. Rc1 {[%clk 0:03:11.4]} 28... Rc8 {[%clk 0:02:31.6]} 29. Bf3
{[%clk 0:03:07.9]} 29... Bxf3 {[%clk 0:02:29]} 30. Rxf3 {[%clk 0:03:07.6]} 30...
Rfd8 {[%clk 0:02:26.9]} 31. Rfxc3 {[%clk 0:03:06.1]} 31... Rxc3 {[%clk
0:02:25.1]} 0-1

[Event "Live Chess"]
[Site "Chess.com"]
[Date "2023.05.20"]
[Round "-"]
[White "McSlash1"]
[Black "smoggyrabbit"]
[Result "1-0"]
[WhiteElo "2061"]
[BlackElo "1617"]
[TimeControl "300"]
[EndTime "10:58:07 PDT"]
[Termination "McSlash1 won by resignation"]

1. e4 {[%clk 0:04:59.3]} 1... e6 {[%clk 0:04:59.1]} 2. d4 {[%clk 0:04:58.2]}
2... d5 {[%clk 0:04:58.2]} 3. Nd2 {[%clk 0:04:56.9]} 3... c5 {[%clk 0:04:55.3]}
4. dxc5 {[%clk 0:04:56.2]} 4... Bxc5 {[%clk 0:04:53.6]} 5. Bd3 {[%clk
0:04:55.8]} 5... Ne7 {[%clk 0:04:48.3]} 6. Qe2 {[%clk 0:04:55.1]} 6... Nbc6
{[%clk 0:04:44.4]} 7. c3 {[%clk 0:04:54.3]} 7... O-O {[%clk 0:04:37.7]} 8. Ngf3
{[%clk 0:04:53.7]} 8... f6 {[%clk 0:03:35.3]} 9. O-O {[%clk 0:04:52.1]} 9... e5
{[%clk 0:03:33.9]} 10. Nb3 {[%clk 0:04:47.6]} 10... Bb6 {[%clk 0:03:29.8]} 11.
exd5 {[%clk 0:04:46.3]} 11... Nxd5 {[%clk 0:03:27.4]} 12. Bc4 {[%clk 0:04:41.6]}
12... Kh8 {[%clk 0:03:12.9]} 13. Rd1 {[%clk 0:04:39.5]} 13... Be6 {[%clk
0:02:54.3]} 14. a4 {[%clk 0:04:03.3]} 14... Nce7 {[%clk 0:02:36.2]} 15. a5
{[%clk 0:04:00]} 15... Bc7 {[%clk 0:02:29.6]} 16. Nc5 {[%clk 0:03:58.4]} 16...
Bf7 {[%clk 0:02:22.7]} 17. Nxb7 {[%clk 0:03:47.2]} 17... Qb8 {[%clk 0:02:15.1]}
18. a6 {[%clk 0:03:42.8]} 18... Nb6 {[%clk 0:01:57.6]} 19. Bxf7 {[%clk
0:03:39.4]} 19... Rxf7 {[%clk 0:01:56.8]} 20. Qb5 {[%clk 0:03:28.2]} 20... Bd6
{[%clk 0:01:42.5]} 21. Rxd6 {[%clk 0:03:23.2]} 21... Qc7 {[%clk 0:01:32.5]} 22.
Be3 {[%clk 0:03:13.9]} 22... Nc4 {[%clk 0:01:26.7]} 23. Rd7 {[%clk 0:03:04.7]}
23... Qc8 {[%clk 0:01:08.2]} 24. Rd8+ {[%clk 0:03:02.8]} 1-0